fUST/lending_fUST_20250208
["ID","MTS","AMOUNT","RATE_DAILY","PERIOD"]
[352196624,1738990252746,-1120.15,0.00011506,2]
[352196625,1738990252757,-500.0,0.00011506,2]
[352196626,1738990252768,-683.23,0.00011506,2]
[352196627,1738990252974,-500.0,0.00011506,2]
[352196628,1738990252984,-1080.15,0.00011506,2]
[352196629,1738990252994,-500.0,0.00011506,2]
[352196630,1738990253003,-500.0,0.00011506,2]
[352196631,1738990253013,-500.0,0.00011506,2]
[352196632,1738990253023,-213.793111,0.00011506,2]
[352196633,1738990253032,-2739.64,0.00011506,2]
[352196634,1738990253042,-542.82,0.00011506,2]
[352196635,1738990253051,-2267.91,0.00011506,2]
[352196636,1738990253062,-213.793111,0.00011506,2]
[352196637,1738990253071,-4639.19,0.00011506,2]
[352196638,1738990253080,-594.98,0.00011506,2]
[352196639,1738990253090,-2554.63,0.00011506,2]
[352196640,1738990253099,-500.0,0.00011506,2]
[352196641,1738990253108,-151.0,0.00011506,2]
[352196642,1738990253118,-983.21,0.00011506,2]
[352196643,1738990253127,-609.19,0.00011506,2]
[352196644,1738990253136,-847.91,0.00011506,2]
[352196645,1738990253146,-500.0,0.00011506,2]
[352196646,1738990253155,-500.0,0.00011506,2]
[352196647,1738990253164,-1322.15,0.00011506,2]
[352196648,1738990253174,-500.0,0.00011506,2]
[352196649,1738990253185,-595.52,0.00011506,2]
[352196650,1738990253195,-500.0,0.00011506,2]
[352196651,1738990253204,-3550.62,0.00011506,2]
[352196652,1738990253213,-500.0,0.00011506,2]
[352196653,1738990253223,-500.0,0.00011506,2]
[352196654,1738990253232,-500.0,0.00011506,2]
[352196655,1738990253241,-500.0,0.00011506,2]
[352196656,1738990253250,-960.42,0.00011506,2]
[352196657,1738990253259,-553.73,0.00011506,2]
[352196658,1738990253268,-510.8,0.00011506,2]
[352196659,1738990253277,-500.0,0.00011506,2]
[352196660,1738990253286,-500.0,0.00011506,2]
[352196661,1738990253296,-500.0,0.00011506,2]
[352196662,1738990253306,-500.0,0.00011506,2]
[352196663,1738990253315,-12495.2,0.00011506,2]
[352196664,1738990253324,-1000.0,0.00011521,2]
[352196665,1738990253333,-206.22321867,0.00011538,2]
[352196666,1738990253342,-150.532,0.00011542,2]
[352196667,1738990253351,-1978.517,0.00011542,2]
[352196668,1738990253360,-539.973,0.00011542,2]
[352196669,1738990253369,-2299.991,0.00011542,2]
[352196670,1738990253379,-151.0,0.00011542,2]
[352196671,1738990253388,-151.0,0.00011542,2]
[352196672,1738990253397,-150.22,0.00011542,2]
[352196673,1738990253407,-396.0,0.00011542,2]
[352196674,1738990253416,-404.557,0.00011542,2]
[352196675,1738990253426,-151.0,0.00011543,2]
[352196676,1738990253437,-255.0,0.00011543,2]
[352196677,1738990253446,-261.75,0.00011543,2]
[352196678,1738990253456,-433.796,0.00011551,2]
[352196679,1738990253466,-151.0,0.000116,2]
[352196680,1738990253476,-7171.49,0.000116,2]
[352196681,1738990253486,-151.0,0.000116,2]
[352196682,1738990253495,-425.1,0.00011643,2]
[352196683,1738990253505,-151.0,0.00011643,2]
[352196684,1738990253515,-151.0,0.00011643,2]
[352196685,1738990253528,-152.755941,0.00011643,2]
[352196686,1738990253537,-151.0,0.00011643,2]
[352196687,1738990253547,-164.799783,0.00011643,2]
[352196688,1738990253557,-164.799783,0.00011643,2]
[352196689,1738990253566,-151.0,0.00011643,2]
[352196690,1738990253577,-151.0,0.00011643,2]
[352196691,1738990253587,-289.284504,0.00011643,2]
[352196692,1738990253598,-293.078191,0.00011643,2]
[352196693,1738990253607,-151.0,0.00011643,2]
[352196694,1738990253617,-151.0,0.00011643,2]
[352196695,1738990253626,-359.695974,0.00011643,2]
[352196696,1738990253636,-151.770735,0.00011643,2]
[352196697,1738990253646,-151.0,0.00011643,2]
[352196698,1738990253656,-500.0,0.00011643,2]
[352196699,1738990253665,-256.563099,0.00011643,2]
[352196700,1738990253675,-256.563099,0.00011643,2]
[352196701,1738990253685,-151.0,0.00011643,2]
[352196702,1738990253695,-580.87,0.00011643,2]
[352196703,1738990253704,-500.0,0.00011643,2]
[352196704,1738990253714,-151.0,0.00011643,2]
[352196705,1738990253723,-355.262974,0.00011643,2]
[352196706,1738990253732,-355.262974,0.00011643,2]
[352196707,1738990253741,-500.0,0.00011643,2]
[352196708,1738990253751,-500.0,0.00011643,2]
[352196709,1738990253760,-500.0,0.00011643,2]
[352196710,1738990253770,-500.0,0.00011643,2]
[352196711,1738990253779,-500.0,0.00011643,2]
[352196712,1738990253788,-151.0,0.00011643,2]
[352196713,1738990253798,-151.0,0.00011643,2]
[352196714,1738990253807,-172.987951,0.00011643,2]
[352196715,1738990253816,-441.81440441,0.00011643,2]
[352196716,1738990253826,-172.987951,0.00011643,2]
[352196717,1738990253835,-151.0,0.00011643,2]
[352196718,1738990253844,-151.0,0.00011643,2]
[352196719,1738990253854,-715.79,0.00011643,2]
[352196720,1738990253864,-782.62,0.00011643,2]
[352196721,1738990253874,-151.0,0.00011643,2]
[352196722,1738990253883,-519.856791,0.00011643,2]
[352196723,1738990253893,-500.0,0.00011643,2]
[352196724,1738990253902,-519.856791,0.00011643,2]
[352196725,1738990253912,-155.275993,0.00011643,2]
[352196726,1738990253922,-500.0,0.00011643,2]
[352196727,1738990253931,-204.43373747,0.00011643,2]
[352196728,1738990254118,-531.96040214,0.00011643,2]
[352196729,1738990254135,-222.00586039,0.00011643,2]
[352196730,1738990254145,-500.0,0.00011643,2]
[352196731,1738990254155,-358.43884202,0.00011643,2]
[352196732,1738990254164,-500.0,0.00011643,2]
[352196733,1738990254174,-151.0,0.00011643,2]
[352196734,1738990254183,-1239.19,0.00011643,2]
[352196735,1738990254192,-569.77,0.00011643,2]
[352196736,1738990254201,-27.54550019,0.00011643,2]
[352196737,1738990254375,-500.0,0.00010958,2]
[352196738,1738990254384,-500.0,0.00010958,2]
[352196739,1738990254394,-555.38243949,0.00010958,2]
[352196740,1738990254404,-500.0,0.00010958,2]
[352196741,1738990254413,-500.0,0.00011095,2]
[352196742,1738990254422,-500.0,0.00011095,2]
[352196743,1738990254432,-153.176,0.00011542,2]
[352196744,1738990254443,-1239.46449981,0.00011643,2]
[352196745,1738990254452,-500.0,0.00011643,2]
[352196746,1738990254461,-913.82,0.00011643,2]
[352196747,1738990254471,-500.0,0.00011643,2]
[352196748,1738990254482,-500.0,0.00011643,2]
[352196749,1738990254494,-500.0,0.00011643,2]
[352196750,1738990254504,-151.0,0.00011643,2]
[352196751,1738990254515,-500.0,0.00011643,2]
[352196752,1738990254528,-500.0,0.00011643,2]
[352196753,1738990254538,-553.37,0.00011643,2]
[352196754,1738990254547,-1221.37,0.00011643,2]
[352196755,1738990254557,-500.0,0.00011643,2]
[352196756,1738990254567,-866.28,0.00011643,2]
[352196757,1738990254576,-2615.21,0.00011643,2]
[352196758,1738990254586,-1085.44,0.00011643,2]
[352196759,1738990254596,-2229.22,0.00011643,2]
[352196760,1738990254606,-500.0,0.00011643,2]
[352196761,1738990254616,-2768.84,0.00011643,2]
[352196762,1738990254625,-1534.43,0.00011643,2]
[352196763,1738990254635,-1163.48,0.00011643,2]
[352196764,1738990254644,-301.85932356,0.00011643,2]
[352196765,1738990254654,-993.76,0.00011643,2]
[352196766,1738990254663,-540.32,0.00011643,2]
[352196767,1738990254673,-630.82,0.00011643,2]
[352196768,1738990254682,-600.86,0.00011643,2]
[352196769,1738990254693,-1319.41,0.00011643,2]
[352196770,1738990254702,-860.84,0.00011643,2]
[352196771,1738990254711,-940.05,0.00011643,2]
[352196772,1738990254721,-500.0,0.00011643,2]
[352196773,1738990254730,-2535.11,0.00011643,2]
[352196774,1738990254740,-152.666925,0.00011643,2]
[352196775,1738990254749,-161.4398342,0.00011643,2]
[352196776,1738990254759,-10241.52,0.00011643,2]
[352196777,1738990254768,-37711.29,0.00011643,2]
[352196778,1738990254778,-1144.37,0.00011643,2]
[352196779,1738990254788,-2984.12,0.00011643,2]
[352196780,1738990254798,-500.0,0.00011643,2]
[352196781,1738990254808,-1093.36,0.00011643,2]
[352196782,1738990254817,-500.0,0.00011643,2]
[352196783,1738990254827,-1528.49,0.00011643,2]
[352196784,1738990254836,-500.0,0.00011643,2]
[352196785,1738990254845,-1552.03,0.00011643,2]
[352196786,1738990254856,-525.755169,0.00011643,2]
[352196787,1738990254865,-887.71,0.00011643,2]
[352196788,1738990254874,-525.755169,0.00011643,2]
[352196789,1738990254884,-1302.6,0.00011643,2]
[352196790,1738990254894,-758.3,0.00011643,2]
[352196791,1738990254904,-663.51,0.00011643,2]
[352196792,1738990254914,-500.0,0.00011643,2]
[352196793,1738990254924,-1120.15,0.00011643,2]
[352196794,1738990254934,-321.3,0.00011643,2]
[352196795,1738990254943,-683.23,0.00011643,2]
[352196796,1738990254953,-500.0,0.00011643,2]
[352196797,1738990254962,-1080.15,0.00011643,2]
[352196798,1738990254972,-500.0,0.00011643,2]
[352196799,1738990254981,-500.0,0.00011643,2]
[352196800,1738990254991,-213.793111,0.00011643,2]
[352196801,1738990255001,-2739.64,0.00011643,2]
[352196802,1738990255010,-542.82,0.00011643,2]
[352196803,1738990255020,-2267.91,0.00011643,2]
[352196804,1738990255030,-213.793111,0.00011643,2]
[352196805,1738990255039,-2925.71938363,0.00011643,2]
[352196806,1738990255052,-1191.90761232,0.00011643,2]
[352196807,1738990255738,-500.0,0.00010958,2]
[352196808,1738990255748,-500.0,0.00010958,2]
[352196809,1738990255758,-500.0,0.00010958,2]
[352196810,1738990255767,-500.0,0.00010958,2]
[352196811,1738990255777,-500.0,0.00011095,2]
[352196812,1738990255787,-591.4,0.00011095,2]
[352196813,1738990255796,-500.0,0.00011095,2]
[352196814,1738990255805,-334.51632643,0.00011232,2]
[352196815,1738990255817,-165.48367357,0.00011232,2]
[352196816,1738990255826,-500.0,0.00011232,2]
[352196817,1738990255836,-500.0,0.00011369,2]
[352196818,1738990255846,-311.8,0.00011506,2]
[352196819,1738990255856,-521.56300405,0.00011643,2]
[352196820,1738990255865,-594.98,0.00011643,2]
[352196821,1738990256028,-2020.80175792,0.00011643,2]
[352196822,1738990256050,-533.82824208,0.00011643,2]
[352196823,1738990256061,-516.17175792,0.00011643,2]
[352196824,1738990256402,-5000.0,0.00010848,2]
[352196825,1738990256412,-500.0,0.00010958,2]
[352196826,1738990256422,-230.0,0.00010958,2]
[352196827,1738990256433,-500.0,0.00010958,2]
[352196828,1738990256448,-500.0,0.00011095,2]
[352196829,1738990256458,-500.0,0.00011232,2]
[352196830,1738990256468,-151.0,0.00011232,2]
[352196831,1738990256479,-151.0,0.0001136,2]
[352196832,1738990256488,-500.0,0.00011369,2]
[352196833,1738990256498,-151.0,0.00011369,2]
[352196834,1738990256508,-500.0,0.00011506,2]
[352196835,1738990256520,-150.0,0.00011542,2]
[352196836,1738990256531,-6.28941979,0.00011643,2]
[352196837,1738990256541,-151.0,0.00011643,2]
[352196838,1738990256551,-983.21,0.00011643,2]
[352196839,1738990256562,-609.19,0.00011643,2]
[352196840,1738990256572,-847.91,0.00011643,2]
[352196841,1738990256582,-500.0,0.00011643,2]
[352196842,1738990256592,-1322.15,0.00011643,2]
[352196843,1738990256603,-500.0,0.00011643,2]
[352196844,1738990256614,-595.52,0.00011643,2]
[352196845,1738990256625,-500.0,0.00011643,2]
[352196846,1738990256634,-3550.62,0.00011643,2]
[352196847,1738990256644,-500.0,0.00011643,2]
[352196848,1738990256654,-189.97,0.00011643,2]
[352196849,1738990256664,-419.58701576,0.00011643,2]
[352196850,1738990256673,-509.67266583,0.00011643,2]
[352196851,1738990256683,-960.42,0.00011643,2]
[352196852,1738990256696,-553.73,0.00011643,2]
[352196853,1738990256706,-510.8,0.00011643,2]
[352196854,1738990256715,-500.0,0.00011643,2]
[352196855,1738990256724,-500.0,0.00011643,2]
[352196856,1738990256734,-500.0,0.00011643,2]
[352196857,1738990256743,-5350.70830773,0.00011643,2]
[352196858,1738990256757,-7144.49169227,0.00011643,2]
[352196859,1738990256766,-390.26317153,0.00011643,2]
[352196860,1738990401482,3000.0,0.00014,30]
[352196861,1738990401759,3000.0,0.0001401,30]
[352196862,1738990402027,3000.0,0.0001402,30]
[352196863,1738990510622,1000.0,0.00014,30]
[352196864,1738990519916,1000.0,0.00014,30]
[352196865,1738990527952,1000.0,0.00014,30]
[352196866,1738990534985,1000.0,0.00014,30]
[352196867,1738990541489,1000.0,0.00014,30]
[352196868,1738990549085,1000.0,0.00014,30]
[352196869,1738990556757,1000.0,0.00014,30]
[352196870,1738990667694,222.29,0.00014,30]
[352196871,1738990838672,750.0,0.00014,30]
[352196873,1738991315061,5967.08,0.00014,30]
[352196892,1738991432164,-2555.439575,0.00010641,2]
[352196901,1738991438078,-2444.560425,0.00010641,2]
[352196902,1738991438088,-300.0,0.00010857,2]
[352196903,1738991438098,-196.41597954,0.00010858,2]
[352196904,1738991438108,-8620.01552515,0.00010858,2]
[352196905,1738991438120,-454.73516092,0.00010957,2]
[352196906,1738991438130,-500.0,0.00010958,2]
[352196907,1738991438139,-194.56125134,0.00010958,2]
[352196908,1738991438148,-500.0,0.00010958,2]
[352196909,1738991438158,-500.0,0.00010958,2]
[352196910,1738991438167,-500.0,0.00010958,2]
[352196911,1738991438177,-500.0,0.00010958,2]
[352196912,1738991438186,-595.47309573,0.00010958,2]
[352196913,1738991438195,-500.0,0.00010958,2]
[352196914,1738991438206,-247.49734324,0.00010958,2]
[352196915,1738991438215,-500.0,0.00010958,2]
[352196916,1738991438224,-501.18998335,0.00010958,2]
[352196917,1738991438234,-500.0,0.00010958,2]
[352196918,1738991438243,-500.0,0.00010958,2]
[352196919,1738991438254,-500.0,0.00010958,2]
[352196920,1738991438264,-224.53456763,0.00010958,2]
[352196921,1738991438274,-500.0,0.00010958,2]
[352196922,1738991438283,-500.0,0.00010958,2]
[352196923,1738991438292,-500.0,0.00010958,2]
[352196924,1738991438302,-500.0,0.00010958,2]
[352196925,1738991438311,-500.0,0.00010958,2]
[352196926,1738991438321,-500.0,0.00010958,2]
[352196927,1738991438331,-500.0,0.00010958,2]
[352196928,1738991438340,-500.0,0.00010958,2]
[352196929,1738991438349,-500.0,0.00010958,2]
[352196930,1738991438358,-500.0,0.00010958,2]
[352196931,1738991438368,-500.0,0.00010958,2]
[352196932,1738991438377,-500.0,0.00010958,2]
[352196933,1738991438387,-500.0,0.00010958,2]
[352196934,1738991438396,-500.0,0.00010958,2]
[352196935,1738991438405,-500.0,0.00010958,2]
[352196936,1738991438414,-500.0,0.00010958,2]
[352196937,1738991438423,-500.0,0.00010958,2]
[352196938,1738991438432,-253.57642767,0.00010958,2]
[352196939,1738991438446,-246.42357233,0.00010958,2]
[352196940,1738991438456,-500.0,0.00010958,2]
[352196941,1738991438466,-500.0,0.00010958,2]
[352196942,1738991438476,-249.69181,0.00010958,2]
[352196943,1738991438486,-646.03348089,0.00010958,2]
[352196944,1738991438496,-518.19188215,0.00010958,2]
[352196945,1738991438505,-500.0,0.00010958,2]
[352196946,1738991438514,-500.87367359,0.00010958,2]
[352196947,1738991438523,-501.28561336,0.00010958,2]
[352196948,1738991438532,-500.0,0.00010958,2]
[352196949,1738991438542,-500.0,0.00010958,2]
[352196950,1738991438551,-500.0,0.00010958,2]
[352196951,1738991438560,-500.0,0.00010958,2]
[352196952,1738991438569,-384.98105427,0.00010958,2]
[352196953,1738991438579,-500.0,0.00010958,2]
[352196954,1738991438588,-500.0,0.00010958,2]
[352196955,1738991438598,-500.0,0.00010958,2]
[352196956,1738991438608,-500.0,0.00010958,2]
[352196957,1738991438617,-500.0,0.00010958,2]
[352196958,1738991438626,-504.51816725,0.00010958,2]
[352196959,1738991438635,-395.75672126,0.00010958,2]
[352196960,1738991438644,-500.0,0.00010958,2]
[352196961,1738991438654,-500.0,0.00010958,2]
[352196962,1738991438663,-500.0,0.00010958,2]
[352196963,1738991438672,-500.0,0.00010958,2]
[352196964,1738991438681,-500.0,0.00010958,2]
[352196965,1738991438691,-500.0,0.00010958,2]
[352196966,1738991438699,-500.0,0.00010958,2]
[352196967,1738991438710,-500.0,0.00010958,2]
[352196968,1738991438720,-500.0,0.00010958,2]
[352196969,1738991438730,-500.0,0.00010958,2]
[352196970,1738991438739,-500.0,0.00010958,2]
[352196971,1738991438748,-500.0,0.00010958,2]
[352196972,1738991438757,-500.0,0.00010958,2]
[352196973,1738991438766,-500.0,0.00010958,2]
[352196974,1738991438776,-500.0,0.00010958,2]
[352196975,1738991438784,-500.0,0.00010958,2]
[352196976,1738991438794,-500.0,0.00010958,2]
[352196977,1738991438803,-500.0,0.00010958,2]
[352196978,1738991438812,-500.0,0.00010958,2]
[352196979,1738991438822,-500.0,0.00010958,2]
[352196980,1738991438831,-500.0,0.00010958,2]
[352196981,1738991438841,-500.0,0.00010958,2]
[352196982,1738991438852,-501.36615242,0.00010958,2]
[352196983,1738991438862,-500.0,0.00010958,2]
[352196984,1738991438871,-500.0,0.00010958,2]
[352196985,1738991438882,-500.0,0.00010958,2]
[352196986,1738991438891,-500.0,0.00010958,2]
[352196987,1738991438900,-500.0,0.00010958,2]
[352196988,1738991438914,-500.0,0.00010958,2]
[352196989,1738991438924,-500.0,0.00010958,2]
[352196990,1738991438933,-501.3838639,0.00010958,2]
[352196991,1738991438943,-500.0,0.00010958,2]
[352196992,1738991438954,-445.52520704,0.00010958,2]
[352196993,1738991438963,-500.73384987,0.00010958,2]
[352196994,1738991438973,-500.0,0.00010958,2]
[352196995,1738991438983,-260.66385936,0.00010958,2]
[352196996,1738991438994,-502.31564914,0.00010958,2]
[352196997,1738991439003,-500.82314003,0.00010958,2]
[352196998,1738991439013,-507.54005291,0.00010958,2]
[352196999,1738991439022,-560.7222449,0.00010958,2]
[352197000,1738991439031,-502.1579732,0.00010958,2]
[352197001,1738991439040,-501.44539442,0.00010958,2]
[352197002,1738991439049,-500.0,0.00010958,2]
[352197003,1738991439059,-503.92415842,0.00010958,2]
[352197004,1738991439068,-504.55046056,0.00010958,2]
[352197005,1738991439078,-500.0,0.00010958,2]
[352197006,1738991439087,-500.0,0.00010958,2]
[352197007,1738991439096,-424.53784249,0.00010958,2]
[352197008,1738991439106,-500.0,0.00010958,2]
[352197009,1738991439115,-500.0,0.00010958,2]
[352197010,1738991439125,-500.0,0.00010958,2]
[352197011,1738991439134,-501.09278847,0.00010958,2]
[352197012,1738991439143,-500.0,0.00010958,2]
[352197013,1738991439152,-500.0,0.00010958,2]
[352197014,1738991439162,-500.0,0.00010958,2]
[352197015,1738991439171,-511.13136179,0.00010958,2]
[352197016,1738991439180,-500.0,0.00010958,2]
[352197017,1738991439189,-500.0,0.00010958,2]
[352197018,1738991439199,-500.0,0.00010958,2]
[352197019,1738991439208,-500.0,0.00010958,2]
[352197020,1738991439218,-500.0,0.00010958,2]
[352197021,1738991439227,-297.49293765,0.00010958,2]
[352197022,1738991439236,-500.0,0.00010958,2]
[352197023,1738991439246,-500.0,0.00010958,2]
[352197024,1738991439255,-500.0,0.00010958,2]
[352197025,1738991439264,-500.0,0.00010958,2]
[352197026,1738991439274,-500.0,0.00010958,2]
[352197027,1738991439283,-500.0,0.00010958,2]
[352197028,1738991439292,-500.0,0.00010958,2]
[352197029,1738991439302,-500.0,0.00010958,2]
[352197030,1738991439311,-272.32219955,0.00010958,2]
[352197031,1738991439321,-500.0,0.00010958,2]
[352197032,1738991439330,-500.0,0.00010958,2]
[352197033,1738991439339,-500.0,0.00010958,2]
[352197034,1738991439349,-500.0,0.00010958,2]
[352197035,1738991439358,-507.23882839,0.00010958,2]
[352197036,1738991439367,-500.0,0.00010958,2]
[352197037,1738991439376,-500.0,0.00010958,2]
[352197038,1738991439386,-500.0,0.00010958,2]
[352197039,1738991439395,-306.56195816,0.00010958,2]
[352197040,1738991439404,-500.0,0.00010958,2]
[352197041,1738991439413,-500.0,0.00010958,2]
[352197042,1738991439423,-500.0,0.00010958,2]
[352197043,1738991439432,-500.0,0.00010958,2]
[352197044,1738991439441,-500.0,0.00010958,2]
[352197045,1738991439450,-500.0,0.00010958,2]
[352197046,1738991439459,-500.0,0.00010958,2]
[352197047,1738991439469,-500.0,0.00010958,2]
[352197048,1738991439478,-500.0,0.00010958,2]
[352197049,1738991439487,-500.0,0.00010958,2]
[352197050,1738991439496,-500.0,0.00010958,2]
[352197051,1738991439505,-500.0,0.00010958,2]
[352197052,1738991439514,-500.0,0.00010958,2]
[352197053,1738991439523,-500.0,0.00010958,2]
[352197054,1738991439532,-500.0,0.00010958,2]
[352197055,1738991439542,-500.0,0.00010958,2]
[352197056,1738991439551,-500.76199603,0.00010958,2]
[352197057,1738991439560,-500.0,0.00010958,2]
[352197058,1738991439569,-500.0,0.00010958,2]
[352197059,1738991439578,-500.0,0.00010958,2]
[352197060,1738991439587,-500.0,0.00010958,2]
[352197061,1738991439596,-500.0,0.00010958,2]
[352197062,1738991439605,-500.0,0.00010958,2]
[352197063,1738991439615,-503.44206746,0.00010958,2]
[352197064,1738991439624,-500.0,0.00010958,2]
[352197065,1738991439633,-500.0,0.00010958,2]
[352197067,1738991439642,-500.0,0.00010958,2]
[352197069,1738991439651,-500.0,0.00010958,2]
[352197071,1738991439661,-500.0,0.00010958,2]
[352197072,1738991439670,-500.0,0.00010958,2]
[352197074,1738991439680,-500.0,0.00010958,2]
[352197075,1738991439689,-500.0,0.00010958,2]
[352197076,1738991439699,-500.0,0.00010958,2]
[352197077,1738991439708,-500.0,0.00010958,2]
[352197078,1738991439717,-500.0,0.00010958,2]
[352197079,1738991439727,-500.0,0.00010958,2]
[352197080,1738991439736,-849.77,0.00010958,2]
[352197081,1738991439746,-312.40296877,0.00010958,2]
[352197082,1738991439756,-500.0,0.00010958,2]
[352197083,1738991439765,-500.0,0.00010958,2]
[352197084,1738991439774,-500.0,0.00010958,2]
[352197085,1738991439784,-500.0,0.00010958,2]
[352197086,1738991439794,-500.28283846,0.00010958,2]
[352197087,1738991439803,-500.0,0.00010958,2]
[352197088,1738991439813,-500.0,0.00010958,2]
[352197089,1738991439823,-500.0,0.00010958,2]
[352197090,1738991439832,-300.0,0.00010958,2]
[352197091,1738991439842,-500.0,0.00010958,2]
[352197092,1738991439851,-500.0,0.00010958,2]
[352197093,1738991439860,-500.0,0.00010958,2]
[352197094,1738991439870,-500.0,0.00010958,2]
[352197095,1738991439880,-500.0,0.00010958,2]
[352197096,1738991439889,-500.0,0.00010958,2]
[352197097,1738991439901,-501.87346695,0.00010958,2]
[352197098,1738991439912,-500.0,0.00010958,2]
[352197099,1738991439923,-500.0,0.00010958,2]
[352197100,1738991439932,-500.0,0.00010958,2]
[352197101,1738991439941,-500.0,0.00010958,2]
[352197102,1738991439951,-522.07999047,0.00010958,2]
[352197103,1738991439961,-500.0,0.00010958,2]
[352197104,1738991440136,-500.0,0.00010958,2]
[352197105,1738991440148,-500.0,0.00010958,2]
[352197106,1738991440158,-500.0,0.00010958,2]
[352197107,1738991440168,-500.0,0.00010958,2]
[352197108,1738991440178,-500.70733951,0.00010958,2]
[352197109,1738991440188,-501.06338174,0.00010958,2]
[352197110,1738991440198,-500.0,0.00010958,2]
[352197111,1738991440208,-1011.76,0.00010958,2]
[352197112,1738991440218,-500.0,0.00010958,2]
[352197113,1738991440228,-504.14636842,0.00010958,2]
[352197114,1738991440238,-500.0,0.00010958,2]
[352197115,1738991440248,-500.0,0.00010958,2]
[352197116,1738991440257,-500.0,0.00010958,2]
[352197117,1738991440267,-500.0,0.00010958,2]
[352197118,1738991440276,-500.0,0.00010958,2]
[352197119,1738991440286,-500.0,0.00010958,2]
[352197120,1738991440295,-500.0,0.00010958,2]
[352197121,1738991440304,-500.0,0.00010958,2]
[352197122,1738991440313,-500.0,0.00010958,2]
[352197123,1738991440323,-500.0,0.00010958,2]
[352197124,1738991440332,-500.0,0.00010958,2]
[352197125,1738991440342,-500.0,0.00010958,2]
[352197126,1738991440352,-500.0,0.00010958,2]
[352197127,1738991440361,-500.0,0.00010958,2]
[352197128,1738991440371,-500.0,0.00010958,2]
[352197129,1738991440381,-500.0,0.00010958,2]
[352197130,1738991440390,-500.0,0.00010958,2]
[352197131,1738991440400,-500.0,0.00010958,2]
[352197132,1738991440409,-500.0,0.00010958,2]
[352197133,1738991440418,-500.0,0.00010958,2]
[352197134,1738991440427,-500.0,0.00010958,2]
[352197135,1738991440437,-500.0,0.00010958,2]
[352197136,1738991440447,-224.58398188,0.00010958,2]
[352197137,1738991440456,-500.0,0.00010958,2]
[352197138,1738991440466,-503.19804725,0.00010958,2]
[352197139,1738991440475,-500.0,0.00010958,2]
[352197140,1738991440484,-500.0,0.00010958,2]
[352197141,1738991440494,-779.14,0.00010958,2]
[352197142,1738991440503,-500.0,0.00010958,2]
[352197143,1738991440513,-500.0,0.00010958,2]
[352197144,1738991440523,-500.0,0.00010958,2]
[352197145,1738991440531,-500.65593778,0.00010958,2]
[352197146,1738991440541,-500.0,0.00010958,2]
[352197147,1738991440550,-500.0,0.00010958,2]
[352197148,1738991440561,-500.0,0.00010958,2]
[352197149,1738991440572,-500.0,0.00010958,2]
[352197150,1738991440582,-500.0,0.00010958,2]
[352197151,1738991440592,-504.07096815,0.00010958,2]
[352197152,1738991440601,-500.0,0.00010958,2]
[352197153,1738991440610,-500.31047946,0.00010958,2]
[352197154,1738991440620,-502.61935459,0.00010958,2]